bitfinex/quotes_BTCUSD_20250211
["timestamp","ask_amount","ask_price","bid_price","bid_amount"]
[1739309619294,4.65414362,96066.0,96065.0,0.65705444]
[1739309619493,4.52604362,96066.0,96065.0,0.67405444]
[1739309619691,4.52604362,96066.0,96065.0,0.68405444]
[1739309619870,4.52604362,96066.0,96065.0,0.6961681]
[1739309620246,4.52704362,96066.0,96065.0,0.7181681]
[1739309620452,4.5265373,96066.0,96065.0,0.73680001]
[1739309620578,4.5255373,96066.0,96065.0,0.72180001]
[1739309621020,4.5265373,96066.0,96065.0,0.73680001]
[1739309621337,4.42382938,96066.0,96065.0,0.69100001]
[1739309621542,4.42382938,96066.0,96065.0,0.71400001]
[1739309621839,4.42382938,96066.0,96065.0,1.24890001]
[1739309622044,4.4209472,96066.0,96065.0,1.24890001]
[1739309622248,4.40281651,96066.0,96065.0,1.24890001]
[1739309622405,4.40281651,96066.0,96065.0,1.25590001]
[1739309623443,4.23410383,96066.0,96065.0,1.23290001]
[1739309623643,4.15600383,96066.0,96065.0,1.24110001]
[1739309624054,4.15600383,96066.0,96065.0,1.22290001]
[1739309624262,4.15600383,96066.0,96065.0,1.23110001]
[1739309624878,4.15600383,96066.0,96065.0,1.22290001]
[1739309625075,4.15600383,96066.0,96065.0,1.21290001]
[1739309625417,4.15600383,96066.0,96065.0,1.20378635]
[1739309625591,4.15600383,96066.0,96065.0,1.19378635]
[1739309625734,4.15600383,96066.0,96065.0,1.17515444]
[1739309626265,4.15600383,96066.0,96065.0,0.61725444]
[1739309626446,4.15600383,96066.0,96065.0,0.43844765]
[1739309627171,4.15600383,96066.0,96065.0,0.28844765]
[1739309627372,4.15600383,96066.0,96065.0,0.31144765]
[1739309628156,4.17231455,96066.0,96065.0,0.31144765]
[1739309629378,4.17231455,96066.0,96065.0,0.13230365]
[1739309634778,4.17231455,96066.0,96065.0,0.13252751]
[1739309635148,4.32845655,96066.0,96065.0,0.13172751]
[1739309635352,4.32845655,96066.0,96065.0,0.13252751]
[1739309635353,4.17231455,96066.0,96065.0,0.13252751]
[1739309636352,4.17131455,96066.0,96065.0,0.10352751]
[1739309636488,4.17231455,96066.0,96065.0,0.12552751]
[1739309636924,4.17131455,96066.0,96065.0,0.11052751]
[1739309637348,4.17231455,96066.0,96065.0,0.12552751]
[1739309644079,4.03301762,96066.0,96065.0,0.12552751]
[1739309644255,3.87687562,96066.0,96065.0,0.12552751]
[1739309644967,4.03301762,96066.0,96065.0,0.12552751]
[1739309645255,4.1429069,96066.0,96065.0,0.12552751]
[1739309645428,4.1616499,96066.0,96065.0,0.02222386]
[1739309645627,4.1616499,96066.0,96065.0,0.02302386]
[1739309646373,4.1429069,96066.0,96065.0,0.02302386]
[1739309646791,3.9867649,96066.0,96065.0,0.12552751]
[1739309647003,3.8605649,96066.0,96065.0,0.29424658]
[1739309647178,3.8605649,96066.0,96065.0,0.31724658]
[1739309648097,3.8605649,96066.0,96065.0,0.30467151]
[1739309648292,3.8605649,96066.0,96065.0,0.45467151]
[1739309648744,3.87687583,96066.0,96065.0,0.45467151]
[1739309650585,3.87687583,96066.0,96065.0,0.27552751]
[1739309651501,3.87687583,96066.0,96065.0,0.43167151]
[1739309653397,3.87687583,96066.0,96065.0,0.27552751]
[1739309655543,3.87687583,96066.0,96065.0,0.43167151]
[1739309655700,3.87687583,96066.0,96065.0,0.51650088]
[1739309656833,3.8605649,96066.0,96065.0,0.51650088]
[1739309660848,3.8605649,96066.0,96065.0,0.55950088]
[1739309660849,3.87687532,96066.0,96065.0,0.55950088]
[1739309661267,3.85929337,96066.0,96065.0,0.55950088]
[1739309661918,3.85829337,96066.0,96065.0,0.54450088]
[1739309662082,3.85929337,96066.0,96065.0,0.55950088]
[1739309662261,3.85929337,96066.0,96065.0,0.55250088]
[1739309662679,3.85929337,96066.0,96065.0,0.55950088]
[1739309663019,3.85929337,96066.0,96065.0,1.11498095]
[1739309663219,3.85929337,96066.0,96065.0,1.1468824]
[1739309664244,3.82709337,96066.0,96065.0,1.1468824]
[1739309664426,3.82709337,96066.0,96065.0,1.11498095]
[1739309664639,3.76815337,96066.0,96065.0,1.11498095]
[1739309667061,3.54721337,96066.0,96065.0,1.11498095]
[1739309668137,3.03080852,96066.0,96065.0,1.18308095]
[1739309668400,3.03080852,96066.0,96065.0,1.09825158]
[1739309668401,3.00998952,96066.0,96065.0,1.09825158]
[1739309669276,2.84836271,96066.0,96065.0,1.09825158]
[1739309669686,2.82754371,96066.0,96065.0,1.09825158]
[1739309669844,2.76508671,96066.0,96065.0,1.10641158]
[1739309670678,2.76508671,96066.0,96065.0,1.03831158]
[1739309670679,2.49401193,96066.0,96065.0,1.03831158]
[1739309670886,2.3962972,96066.0,96065.0,1.07011749]
[1739309671083,2.35776688,96066.0,96065.0,1.07011749]
[1739309671284,2.27276688,96066.0,96065.0,1.07011749]
[1739309671495,2.21030988,96066.0,96065.0,1.05511749]
[1739309671668,2.16767188,96066.0,96065.0,1.05511749]
[1739309671871,2.16767188,96066.0,96065.0,1.07011749]
[1739309672072,2.16767188,96066.0,96065.0,1.06311749]
[1739309672280,2.14685288,96066.0,96065.0,1.07011749]
[1739309672483,1.85170588,96066.0,96065.0,1.07011749]
[1739309672649,1.82809801,96066.0,96065.0,1.07011749]
[1739309672843,1.82809801,96066.0,96065.0,1.03831158]
[1739309673323,1.80727901,96066.0,96065.0,1.02331158]
[1739309673523,1.76564101,96066.0,96065.0,1.03831158]
[1739309674053,1.72400301,96066.0,96065.0,1.03827158]
[1739309674421,1.72400301,96066.0,96065.0,1.02327158]
[1739309674422,1.58129663,96066.0,96065.0,1.02327158]
[1739309674619,1.58129663,96066.0,96065.0,1.01627158]
[1739309674940,1.58129663,96066.0,96065.0,1.03827158]
[1739309675458,1.58129663,96066.0,96065.0,1.03127158]
[1739309675663,1.51883963,96066.0,96065.0,1.03827158]
[1739309675861,1.47720163,96066.0,96065.0,1.00815158]
[1739309676072,1.47720163,96066.0,96065.0,1.01627158]
[1739309676248,1.47720163,96066.0,96065.0,1.02327158]
[1739309676598,1.41474463,96066.0,96065.0,1.01627158]
[1739309677092,1.39392563,96066.0,96065.0,1.03127158]
[1739309677254,1.37310663,96066.0,96065.0,1.03127158]
[1739309677430,1.28983063,96066.0,96065.0,1.03127158]
[1739309677634,1.26901163,96066.0,96065.0,1.01627158]
[1739309677994,1.26901163,96066.0,96065.0,1.03827158]
[1739309678382,1.22737363,96066.0,96065.0,1.02327158]
[1739309678616,1.20655463,96066.0,96065.0,1.02327158]
[1739309678766,1.16491663,96066.0,96065.0,1.03827158]
[1739309678970,1.16491663,96066.0,96065.0,1.03823158]
[1739309679377,1.04333963,96066.0,96065.0,1.03823158]
[1739309679810,1.04333963,96066.0,96065.0,1.02823158]
[1739309680582,1.04333963,96066.0,96065.0,1.34953158]
[1739309682521,1.00170163,96066.0,96065.0,1.35953158]
[1739309683356,1.00170163,96066.0,96065.0,1.35145158]
[1739309683634,0.81218726,96066.0,96065.0,1.35953158]
[1739309684930,0.79136826,96066.0,96065.0,1.35953158]
[1739309685130,0.72935491,96066.0,96065.0,1.35953158]
[1739309685325,0.68771691,96066.0,96065.0,1.39131813]
[1739309685806,0.60444091,96066.0,96065.0,1.41041044]
[1739309685962,0.58362191,96066.0,96065.0,1.41041044]
[1739309686324,0.56280291,96066.0,96065.0,1.41041044]
[1739309686524,0.54198391,96066.0,96065.0,1.41041044]
[1739309687406,0.50034591,96066.0,96065.0,1.41041044]
[1739309687571,0.47952691,96066.0,96065.0,1.41041044]
[1739309688739,0.47952691,96066.0,96065.0,1.39131813]
[1739309689284,0.45870791,96066.0,96065.0,1.39131813]
[1739309690307,0.41706991,96066.0,96065.0,1.38323813]
[1739309690494,0.37543191,96066.0,96065.0,1.39131813]
[1739309690829,0.35461291,96066.0,96065.0,1.39131813]
[1739309691595,0.33379391,96066.0,96065.0,1.39131813]
[1739309691839,0.25051791,96066.0,96065.0,1.41046241]
[1739309692375,0.22969891,96066.0,96065.0,1.41046241]
[1739309692870,0.16746291,96066.0,96065.0,1.41046241]
[1739309693073,0.14664391,96066.0,96065.0,1.41046241]
[1739309693982,0.12019565,96066.0,96065.0,1.41046241]
[1739309694177,0.05773865,96066.0,96065.0,1.41046241]
[1739309694340,6.5e-07,96066.0,96065.0,1.41046241]
[1739309697057,6.5e-07,96066.0,96065.0,1.40238241]
[1739309697204,6.5e-07,96066.0,96065.0,1.41046241]
[1739309699127,6.5e-07,96069.0,96068.0,0.326939]
[1739309699329,9.1e-07,96069.0,96068.0,0.4842292]
[1739309700323,9.1e-07,96069.0,96068.0,0.4992292]
[1739309700801,0.07860091,96069.0,96068.0,0.51837348]
[1739309701497,9.1e-07,96069.0,96068.0,0.52645348]
[1739309701855,9.1e-07,96069.0,96068.0,0.53345348]
[1739309702236,9.1e-07,96069.0,96068.0,0.5143092]
[1739309704132,0.00010751,96069.0,96068.0,0.5143092]
[1739309704338,0.062667,96072.0,96071.0,0.349934]
[1739309704711,0.062667,96072.0,96071.0,0.4842242]
[1739309705458,0.062667,96072.0,96071.0,0.4792242]
[1739309705862,0.062667,96072.0,96071.0,0.4862242]
[1739309706484,0.062667,96072.0,96071.0,0.5012242]
[1739309707066,0.062667,96072.0,96071.0,0.51819916]
[1739309708047,0.062667,96072.0,96071.0,0.52627916]
[1739309708229,0.014467,96072.0,96071.0,0.52627916]
[1739309710200,0.014467,96072.0,96071.0,1.06117916]
[1739309713252,0.016149,96075.0,96074.0,0.321929]
[1739309713455,0.0465,96082.0,96081.0,0.344918]
[1739309713792,0.04654426,96082.0,96081.0,1.0141082]
[1739309714496,0.01677133,96142.0,96101.0,0.15]
[1739309714608,0.156032,96134.0,96119.0,0.10250365]
[1739309715068,0.02084682,96138.0,96119.0,0.10250365]
[1739309715299,0.156031,96135.0,96119.0,0.10250365]
[1739309715741,0.00030322,96140.0,96123.0,0.10250365]
[1739309716340,0.0772,96132.0,96123.0,0.05250365]
[1739309716979,0.0163022,96130.0,96123.0,0.05250365]
[1739309717110,0.0772,96129.0,96123.0,0.05650365]
[1739309717530,0.0465,96128.0,96123.0,0.21255265]
[1739309717736,0.0772,96127.0,96123.0,0.05650365]
[1739309718184,0.0772,96127.0,96126.0,0.10250365]
[1739309718314,0.0772,96127.0,96126.0,0.25250365]
[1739309718518,0.077108,96127.0,96126.0,0.27550365]
[1739309718735,0.077108,96127.0,96126.0,0.29464432]
[1739309719138,0.00030322,96140.0,96134.0,0.01]
[1739309719344,0.00030322,96140.0,96139.0,0.25852765]
[1739309719555,0.00030322,96140.0,96139.0,0.10250365]
[1739309719762,0.04680322,96140.0,96139.0,0.10250365]
[1739309721508,0.04680322,96140.0,96139.0,0.10950365]
[1739309721711,0.12400322,96140.0,96139.0,0.10950365]
[1739309721924,0.12400322,96140.0,96139.0,0.11750365]
[1739309722127,0.12400322,96140.0,96139.0,0.12450365]
[1739309722307,0.12400322,96140.0,96139.0,0.11750365]
[1739309722498,0.12400322,96140.0,96139.0,0.10250365]
[1739309722703,0.12400322,96140.0,96139.0,0.12450365]
[1739309723588,0.12400322,96140.0,96139.0,0.11750365]
[1739309723941,0.12400322,96140.0,96139.0,0.10250365]
[1739309724148,0.12400322,96140.0,96139.0,0.12164432]
[1739309724365,0.12400322,96140.0,96139.0,0.13664432]
[1739309725048,0.12400322,96140.0,96139.0,0.14364432]
[1739309725883,0.12400322,96140.0,96139.0,0.12864432]
[1739309726101,0.12400322,96140.0,96139.0,0.10950365]
[1739309726298,0.12400322,96140.0,96139.0,0.10250365]
[1739309726504,0.12400322,96140.0,96139.0,0.10950365]
[1739309727273,0.12400322,96140.0,96139.0,0.12450365]
[1739309727557,0.02400322,96140.0,96139.0,0.10950365]
[1739309727959,0.02400322,96140.0,96139.0,0.11750365]
[1739309728368,0.02400322,96140.0,96139.0,0.10950365]
[1739309728677,0.02400322,96140.0,96139.0,0.11750365]
[1739309728827,0.02400322,96140.0,96139.0,0.12450365]
[1739309729437,0.04030177,96140.0,96139.0,0.12450365]
[1739309730187,0.04030177,96140.0,96139.0,0.28052765]
[1739309730561,0.04030177,96140.0,96139.0,0.12450365]
[1739309730769,0.04030177,96140.0,96139.0,0.10950365]
[1739309731181,0.04030177,96140.0,96139.0,0.12450365]
[1739309731622,0.04030177,96140.0,96139.0,0.25956775]
[1739309731777,0.04030177,96140.0,96139.0,0.25852765]
[1739309731985,0.02400322,96140.0,96139.0,0.28052765]
[1739309732821,0.02400322,96140.0,96139.0,0.27352765]
[1739309733330,0.02400322,96140.0,96139.0,0.26552765]
[1739309733664,0.02400322,96140.0,96139.0,0.28052765]
[1739309733987,0.02400322,96140.0,96139.0,0.26552765]
[1739309734387,0.02400322,96140.0,96139.0,0.27352765]
[1739309735071,0.02400322,96140.0,96139.0,0.43052765]
[1739309735852,0.02400322,96140.0,96139.0,0.42352765]
[1739309736063,0.02400322,96140.0,96139.0,0.43052765]
[1739309736483,0.0002,96149.0,96148.0,0.156009]
[1739309736690,0.00064269,96149.0,96148.0,0.25851265]
[1739309736890,0.08084269,96149.0,96148.0,0.25851265]
[1739309737116,0.08084269,96149.0,96148.0,0.10250365]
[1739309737460,0.08084269,96149.0,96148.0,0.25851265]
[1739309737666,0.08499181,96149.0,96148.0,0.25851265]
[1739309737869,0.08455428,96149.0,96148.0,0.25851265]
[1739309738083,0.08455428,96149.0,96148.0,0.11750365]
[1739309738282,0.10085127,96149.0,96148.0,0.11750365]
[1739309738488,0.10085127,96149.0,96148.0,0.27351265]
[1739309738902,0.10085127,96149.0,96148.0,0.28051265]
[1739309739645,0.08455428,96149.0,96148.0,0.28051265]
[1739309739845,0.08040516,96149.0,96148.0,0.28051265]
[1739309740473,0.08040516,96149.0,96148.0,0.26551265]
[1739309740808,0.08040516,96149.0,96148.0,0.28051265]
[1739309741150,0.09670197,96149.0,96148.0,0.27351265]
[1739309741389,0.08040516,96149.0,96148.0,0.25851265]
[1739309741748,0.08040516,96149.0,96148.0,0.28051265]
[1739309741939,0.08040516,96149.0,96148.0,0.27351265]
[1739309742309,0.08040516,96149.0,96148.0,0.28051265]
[1739309743119,0.08040516,96149.0,96148.0,0.25851265]
[1739309743319,0.08040516,96149.0,96148.0,0.27351265]
[1739309743560,0.08040516,96149.0,96148.0,0.42351265]
[1739309743991,0.08040516,96149.0,96148.0,0.40851265]
[1739309744193,0.08040516,96149.0,96148.0,0.42351265]
[1739309744401,0.08040516,96149.0,96148.0,0.43051265]
[1739309745642,0.00020516,96149.0,96148.0,0.44855265]
[1739309745842,0.00020516,96149.0,96148.0,0.48155265]
[1739309746500,0.00020516,96149.0,96148.0,0.56075265]
[1739309746713,0.00020516,96149.0,96148.0,0.54575265]
[1739309747100,0.00020516,96149.0,96148.0,0.56075265]
[1739309747523,0.155947,96187.0,96168.0,0.155976]
[1739309747721,0.15,96214.0,96175.0,0.10250365]
[1739309747900,0.16058029,96186.0,96175.0,0.10250365]
[1739309748306,0.15595,96185.0,96175.0,0.10250365]
[1739309748682,0.1605829,96184.0,96175.0,0.10250365]
[1739309748904,0.0046319,96184.0,96175.0,0.10250365]
[1739309749298,0.15595,96185.0,96175.0,0.10250365]
[1739309749499,0.00463236,96184.0,96175.0,0.10950365]
[1739309750366,0.1263,96183.0,96175.0,0.12450365]
[1739309750721,0.00463055,96182.0,96175.0,0.11750365]
[1739309750922,0.232564,96176.0,96175.0,0.10950365]
[1739309751245,0.08125244,96176.0,96175.0,0.11750365]
[1739309751452,0.23721644,96176.0,96175.0,0.12450365]
[1739309751659,0.23721644,96176.0,96175.0,0.11750365]
[1739309752060,0.23721644,96176.0,96175.0,0.12450365]
[1739309752468,0.23721644,96176.0,96175.0,0.10950365]
[1739309752741,0.23721644,96176.0,96175.0,0.12450365]
[1739309753193,0.08125244,96176.0,96175.0,0.10950365]
[1739309753728,0.23721644,96176.0,96175.0,0.12450365]
[1739309760007,0.23721644,96176.0,96175.0,0.11750365]
[1739309760426,0.23721644,96176.0,96175.0,0.12450365]
[1739309760626,0.23721644,96176.0,96175.0,0.11750365]
[1739309760800,0.23721644,96176.0,96175.0,0.10250365]
[1739309761028,0.23721644,96176.0,96175.0,0.10950365]
[1739309761217,0.23721644,96176.0,96175.0,0.10250365]
[1739309761628,0.23721644,96176.0,96175.0,0.10950365]
[1739309761804,0.23721644,96176.0,96175.0,0.10250365]
[1739309762711,0.23721644,96176.0,96175.0,0.11750365]
[1739309763130,0.22721644,96176.0,96175.0,0.10950365]
[1739309763328,0.22721644,96176.0,96175.0,0.10250365]
[1739309763579,0.22721644,96176.0,96175.0,0.11750365]
[1739309763795,0.22721644,96176.0,96175.0,0.12450365]
[1739309764190,0.22721644,96176.0,96175.0,0.10950365]
[1739309764350,0.22721644,96176.0,96175.0,0.12450365]
[1739309765305,0.07125244,96176.0,96168.0,0.00044269]
[1739309765494,0.155975,96169.0,96168.0,0.00044269]
[1739309765674,0.15998848,96169.0,96168.0,0.00044269]
[1739309766173,0.24218848,96169.0,96168.0,0.00044269]
[1739309766965,0.24218848,96169.0,96168.0,0.01544269]
[1739309767108,0.24218848,96169.0,96168.0,0.02244269]
[1739309767505,0.33334513,96169.0,96168.0,0.02244269]
[1739309767760,0.53184513,96169.0,96168.0,0.02244269]
[1739309768129,0.44068848,96169.0,96168.0,0.02244269]
[1739309768735,0.45670063,96169.0,96168.0,0.02244269]
[1739309769145,0.44068848,96169.0,96168.0,0.02244269]
[1739309769479,0.29068848,96169.0,96168.0,0.00744269]
[1739309770216,0.29068848,96169.0,96168.0,0.01144269]
[1739309770426,0.38373296,96169.0,96168.0,0.00444269]
[1739309770694,0.29068848,96169.0,96168.0,0.00044269]
[1739309771113,0.29168848,96169.0,96168.0,0.01044269]
[1739309771477,0.29168848,96169.0,96168.0,0.01344269]
[1739309771685,0.29168848,96169.0,96168.0,0.01044269]
[1739309772288,0.29068848,96169.0,96168.0,0.00044269]
[1739309772822,0.29068848,96169.0,96168.0,0.00444269]
[1739309773180,0.29068848,96169.0,96168.0,0.00044269]
[1739309773403,0.29068848,96169.0,96168.0,0.00744269]
[1739309773904,0.29068848,96169.0,96168.0,0.00144269]
[1739309774122,0.29068848,96169.0,96168.0,0.00044269]
[1739309774316,0.29068848,96169.0,96168.0,0.00844269]
[1739309774721,0.29068848,96169.0,96168.0,0.00744269]
[1739309775045,0.29068848,96169.0,96168.0,0.00944269]
[1739309775286,0.29068848,96169.0,96168.0,0.00744269]
[1739309775505,0.29068848,96169.0,96168.0,0.00044269]
[1739309775689,0.29068848,96169.0,96168.0,0.00844269]
[1739309775690,0.29168848,96169.0,96168.0,0.00844269]
[1739309776330,0.29068848,96169.0,96168.0,0.00244269]
[1739309776502,0.29168848,96169.0,96168.0,0.00844269]
[1739309780124,0.29168848,96169.0,96168.0,0.00866634]
[1739309783789,0.24318848,96169.0,96168.0,0.00866634]
[1739309784410,0.24318848,96169.0,96168.0,0.00066634]
[1739309784614,0.24218848,96169.0,96168.0,0.00266634]
[1739309784814,0.24318848,96169.0,96168.0,0.01166634]
[1739309789994,0.24318848,96169.0,96168.0,0.00966634]
[1739309790238,0.24318848,96169.0,96168.0,0.01266634]
[1739309791185,0.24218848,96169.0,96168.0,0.00366634]
[1739309791643,0.24318848,96169.0,96168.0,0.01266634]
[1739309793125,0.48150142,96169.0,96168.0,0.01266634]
[1739309794651,0.39318848,96169.0,96168.0,0.01266634]
[1739309805543,0.42318848,96169.0,96168.0,0.01266634]
[1739309818859,0.03564517,96169.0,96168.0,0.01266634]
[1739309819095,0.0351366,96169.0,96168.0,0.01266634]
[1739309819617,0.34062017,96169.0,96168.0,0.00066634]
[1739309819772,0.34062017,96169.0,96168.0,0.00266634]
[1739309821155,0.34162017,96169.0,96168.0,0.01066634]
[1739309823584,0.34162017,96169.0,96168.0,0.00866634]
[1739309823985,0.34062017,96169.0,96168.0,0.00266634]
[1739309824816,0.43867628,96169.0,96168.0,0.00266634]
[1739309825303,0.43867628,96169.0,96168.0,0.01066634]
[1739309825631,0.55554247,96169.0,96168.0,0.01066634]
[1739309826065,1.14378847,96169.0,96168.0,0.01066634]
[1739309826441,1.01897947,96169.0,96168.0,0.01066634]
[1739309826643,1.00603747,96169.0,96168.0,0.00866634]
[1739309826962,1.00703747,96169.0,96168.0,0.00866634]
[1739309827149,1.00703747,96169.0,96168.0,0.00066634]
[1739309827361,0.68780036,96169.0,96168.0,0.00066634]
[1739309827559,0.65270036,96169.0,96168.0,0.00066634]
[1739309827771,0.34162017,96169.0,96168.0,0.00066634]
[1739309828933,0.34062017,96169.0,96168.0,0.00066634]
[1739309829234,0.34072667,96169.0,96168.0,0.00166634]
[1739309829450,0.34072667,96169.0,96168.0,0.00066634]
[1739309829737,0.34072667,96169.0,96168.0,0.00166634]
[1739309830106,0.34072667,96169.0,96168.0,0.00066634]
[1739309830304,0.34072667,96169.0,96168.0,0.00166634]
[1739309831026,0.3394548,96169.0,96168.0,0.00766634]
[1739309831546,0.3394548,96169.0,96168.0,0.00166634]
[1739309832051,0.3394548,96169.0,96168.0,0.00766634]
[1739309832264,0.43739437,96169.0,96168.0,0.00866634]
[1739309832850,0.43739437,96169.0,96168.0,0.00766634]
[1739309833443,0.3394548,96169.0,96168.0,0.00766634]
[1739309833835,0.3394548,96169.0,96168.0,0.00066634]
[1739309834070,0.3394548,96169.0,96168.0,0.00566634]
[1739309834593,0.3394548,96169.0,96168.0,0.00066634]
[1739309834949,0.3394548,96169.0,96168.0,0.00766634]
[1739309835423,0.33742364,96169.0,96168.0,0.00766634]
[1739309835627,0.33742364,96169.0,96168.0,0.00066634]
[1739309835807,0.33742364,96169.0,96168.0,0.00166634]
[1739309836219,0.33742364,96169.0,96168.0,0.00066634]
[1739309836420,0.33742364,96169.0,96168.0,0.00166634]
[1739309836799,0.33742364,96169.0,96168.0,0.00866634]
[1739309837377,0.33742364,96169.0,96168.0,0.00166634]
[1739309837615,0.33742364,96169.0,96168.0,0.00866634]
[1739309838532,0.5142601,96169.0,96168.0,0.00866634]
[1739309839079,0.156007,96149.0,96148.0,0.00022344]
[1739309839329,0.16117366,96149.0,96148.0,0.00035641]
[1739309840921,0.16117366,96149.0,96148.0,0.01535641]
[1739309841168,0.16217366,96149.0,96148.0,0.01535641]
[1739309841493,0.16117366,96149.0,96148.0,0.00035641]
[1739309841694,0.16475628,96149.0,96148.0,0.01535641]
[1739309842059,0.16475628,96149.0,96148.0,0.02035641]
[1739309842398,0.16475628,96149.0,96148.0,0.01535641]
[1739309842601,0.16475628,96149.0,96148.0,0.02035641]
[1739309843005,0.16375628,96149.0,96148.0,0.00035641]
[1739309843211,0.16475628,96149.0,96148.0,0.02035641]
[1739309843518,0.16475628,96149.0,96148.0,0.12286006]
[1739309843922,0.16375628,96149.0,96148.0,0.10786006]
[1739309844172,0.16475628,96149.0,96148.0,0.12286006]
[1739309844582,0.16475628,96149.0,96148.0,0.25186006]
[1739309844583,0.00874928,96149.0,96148.0,0.25186006]
[1739309844780,0.00774928,96149.0,96148.0,0.23186006]
[1739309844987,0.00774928,96149.0,96148.0,0.24686006]
[1739309844988,0.001,96149.0,96148.0,0.24686006]
[1739309845142,0.001,96149.0,96148.0,0.25186006]
[1739309845345,0.001,96149.0,96148.0,0.24686006]
[1739309845746,0.00969,96149.0,96148.0,0.25286006]
[1739309846097,0.00969039,96149.0,96148.0,0.25286006]
[1739309846315,0.00869039,96149.0,96148.0,0.23786006]
[1739309846651,0.00969039,96149.0,96148.0,0.25286006]
[1739309847533,0.16569739,96149.0,96148.0,0.25286006]
[1739309847736,0.00969039,96149.0,96148.0,0.25286006]
[1739309849614,0.16569739,96149.0,96148.0,0.25286006]
[1739309850466,0.16569739,96149.0,96148.0,0.12386006]
[1739309852118,0.16569739,96149.0,96148.0,0.02135641]
[1739309853073,0.20235681,96149.0,96148.0,0.02135641]
[1739309853286,0.18565841,96149.0,96148.0,0.02135641]
[1739309855232,0.20642555,96149.0,96148.0,0.02135641]
[1739309860106,0.18565841,96149.0,96148.0,0.02135641]
[1739309861297,0.18442943,96149.0,96148.0,0.02135641]
[1739309863046,0.00846141,96149.0,96148.0,0.24586006]
[1739309863626,0.001,96149.0,96148.0,0.24586006]
[1739309863834,0.00866762,96149.0,96148.0,0.24586006]
[1739309864025,0.156003,96152.0,96148.0,0.23086006]
[1739309864249,0.00766776,96149.0,96148.0,0.12835641]
[1739309864451,0.00766776,96149.0,96148.0,0.22486006]
[1739309864759,0.156005,96151.0,96148.0,0.22986006]
[1739309865054,0.156005,96151.0,96149.0,0.10250365]
[1739309865266,0.208002,96153.0,96149.0,0.10250365]
[1739309865462,0.156005,96151.0,96149.0,0.10250365]
[1739309865806,0.01782025,96166.0,96149.0,0.10250365]
[1739309866007,0.156006,96150.0,96149.0,0.10250365]
[1739309866572,0.208005,96152.0,96149.0,0.10250365]
[1739309866741,0.208005,96152.0,96149.0,0.11750365]
[1739309866945,0.23477047,96169.0,96154.0,0.0812]
[1739309867150,0.155988,96161.0,96155.0,0.10250365]
[1739309867349,0.15599,96160.0,96155.0,0.10250365]
[1739309867966,0.155991,96160.0,96155.0,0.10250365]
[1739309868172,0.02680347,96169.0,96155.0,0.10250365]
[1739309868173,0.155992,96159.0,96155.0,0.10250365]
[1739309868518,0.155992,96159.0,96155.0,0.10750365]
[1739309868916,0.155992,96159.0,96155.0,0.10250365]
[1739309869107,0.15599,96160.0,96155.0,0.12250365]
[1739309869418,0.15599,96160.0,96155.0,0.11650365]
[1739309869647,0.15599,96160.0,96155.0,0.10250365]
[1739309869797,0.15599,96160.0,96155.0,0.10950365]
[1739309870013,0.15599,96160.0,96155.0,0.12450365]
[1739309870435,0.02680347,96169.0,96155.0,0.10950365]
[1739309870761,0.155992,96159.0,96155.0,0.12450365]
[1739309870966,0.155992,96159.0,96155.0,0.11750365]
[1739309871324,0.155992,96159.0,96155.0,0.12450365]
[1739309871535,0.155992,96159.0,96155.0,0.11750365]
[1739309871932,0.02680347,96169.0,96167.0,0.155978]
[1739309872139,0.02680347,96169.0,96167.0,0.22600365]
[1739309872498,0.00782983,96168.0,96167.0,0.22600365]
[1739309873709,0.00782983,96168.0,96167.0,0.24100365]
[1739309874151,0.00782983,96168.0,96167.0,0.23000365]
[1739309874387,0.00782983,96168.0,96167.0,0.22600365]
[1739309874591,0.00782983,96168.0,96167.0,0.24800365]
[1739309874907,0.00782983,96168.0,96167.0,0.39698165]
[1739309875241,0.0001065,96168.0,96167.0,0.40398165]
[1739309875438,0.0001065,96168.0,96167.0,0.39698165]
[1739309875861,0.0001065,96168.0,96167.0,0.40398165]
[1739309876263,0.0001065,96168.0,96167.0,0.38898165]
[1739309876670,0.0001065,96168.0,96167.0,0.40398165]
[1739309877033,0.0001065,96168.0,96167.0,0.38198165]
[1739309877277,0.0001065,96168.0,96167.0,0.39698165]
[1739309877473,0.00662902,96168.0,96167.0,0.40398165]
[1739309877673,0.00662902,96168.0,96167.0,0.39698165]
[1739309877877,0.00662902,96168.0,96167.0,0.38198165]
[1739309878074,0.00662902,96168.0,96167.0,0.40398165]
[1739309878245,0.00662902,96168.0,96167.0,0.39698165]
[1739309878642,0.00662902,96168.0,96167.0,0.40398165]
[1739309878875,0.00662902,96168.0,96167.0,0.39698165]
[1739309879315,0.0001065,96168.0,96167.0,0.39698165]
[1739309879908,0.00662902,96168.0,96167.0,0.38198165]
[1739309880110,0.00662902,96168.0,96167.0,0.38898165]
[1739309880444,0.00662902,96168.0,96167.0,0.39698165]
[1739309880956,0.00662902,96168.0,96167.0,0.38198165]
[1739309881338,0.00662902,96168.0,96167.0,0.40398165]
[1739309881517,0.00662902,96168.0,96167.0,0.24800365]
[1739309881730,0.16260602,96168.0,96167.0,0.15790365]
[1739309882106,0.16260602,96168.0,96167.0,0.10950365]
[1739309882747,0.00662902,96168.0,96167.0,0.23300365]
[1739309883203,0.0001065,96168.0,96167.0,0.24100365]
[1739309883483,0.1560835,96168.0,96167.0,0.24100365]
[1739309883633,0.1615097,96168.0,96167.0,0.22600365]
[1739309884047,0.1615097,96168.0,96167.0,0.24800365]
[1739309884415,0.0055327,96168.0,96167.0,0.22600365]
[1739309884712,0.0055327,96168.0,96167.0,0.23300365]
[1739309884925,0.0001065,96168.0,96167.0,0.22600365]
[1739309885320,0.00553018,96168.0,96167.0,0.24800365]
[1739309886484,0.00553018,96168.0,96167.0,0.22600365]
[1739309886693,0.00553018,96168.0,96167.0,0.24800365]
[1739309887094,0.00553018,96168.0,96167.0,0.24100365]
[1739309887294,0.00553018,96168.0,96167.0,0.23300365]
[1739309887717,0.00553018,96168.0,96167.0,0.22600365]
[1739309888015,0.00553018,96168.0,96167.0,0.24800365]
[1739309888217,0.00553018,96168.0,96167.0,0.39698165]
[1739309888440,0.0001065,96168.0,96167.0,0.39698165]
[1739309889686,0.0001065,96168.0,96167.0,0.40398165]
[1739309889894,0.0001065,96168.0,96167.0,0.38898165]
[1739309890009,0.0001065,96168.0,96167.0,0.38198165]
[1739309890214,0.0001065,96168.0,96167.0,0.38898165]
[1739309890618,0.0001065,96168.0,96167.0,0.40398165]
[1739309891216,0.0001065,96168.0,96167.0,0.39702165]
[1739309891429,0.0001065,96168.0,96167.0,0.41202165]
[1739309902196,0.0001065,96175.0,96174.0,0.279]
[1739309902390,0.0001065,96175.0,96174.0,0.58047065]
[1739309902654,0.0001065,96175.0,96174.0,0.61230003]
[1739309903479,0.0001065,96175.0,96174.0,0.62730003]
[1739309903686,0.0004,96229.0,96223.0,0.155887]
[1739309903895,0.0004,96229.0,96223.0,0.25839065]
[1739309904114,0.0004,96229.0,96223.0,0.10250365]
[1739309904551,0.0004,96229.0,96223.0,0.10354276]
[1739309904774,0.0004,96229.0,96223.0,0.10250365]